[Event "*** Titled Tuesday Blitz"]
[Site "Chess.com"]
[Date "2021.03.09"]
[Round "5"]
[White "Bastiandash"]
[Black "Chernov_Alexander_A"]
[Result "1-0"]
[WhiteElo "2464"]
[BlackElo "2272"]
[TimeControl "180+1"]
[EndTime "10:59:18 PST"]
[Termination "Bastiandash won on time"]

1. e4 {[%clk 0:03:00.9]} 1... c6 {[%clk 0:02:59.1]} 2. d4 {[%clk 0:02:44.7]}
2... d5 {[%clk 0:02:58.9]} 3. exd5 {[%clk 0:02:45.6]} 3... cxd5 {[%clk 0:02:59]}
4. Bd3 {[%clk 0:02:42.3]} 4... Nf6 {[%clk 0:02:58.6]} 5. c3 {[%clk 0:02:42.2]}
5... Nc6 {[%clk 0:02:58.6]} 6. Ne2 {[%clk 0:02:42.4]} 6... g6 {[%clk 0:02:58.8]}
7. O-O {[%clk 0:02:41.5]} 7... Bf5 {[%clk 0:02:58.6]} 8. Qc2 {[%clk 0:02:41.3]}
8... Bxd3 {[%clk 0:02:57.8]} 9. Qxd3 {[%clk 0:02:42.2]} 9... Bg7 {[%clk
0:02:58]} 10. Bg5 {[%clk 0:02:40]} 10... O-O {[%clk 0:02:57.4]} 11. Nd2 {[%clk
0:02:39.8]} 11... Rc8 {[%clk 0:02:43.5]} 12. f4 {[%clk 0:02:39.3]} 12... e6
{[%clk 0:02:42.7]} 13. Bxf6 {[%clk 0:02:30.3]} 13... Qxf6 {[%clk 0:02:34.5]} 14.
Nf3 {[%clk 0:02:30.3]} 14... Qd8 {[%clk 0:02:27.9]} 15. Ne5 {[%clk 0:02:29.5]}
15... Re8 {[%clk 0:02:20.1]} 16. Rf3 {[%clk 0:02:12.8]} 16... Qb6 {[%clk
0:02:12.5]} 17. Kh1 {[%clk 0:02:07.7]} 17... f6 {[%clk 0:01:44.3]} 18. Ng4
{[%clk 0:01:42.6]} 18... Rc7 {[%clk 0:01:35.1]} 19. Ne3 {[%clk 0:01:34.4]} 19...
Qxb2 {[%clk 0:01:21.4]} 20. Rb1 {[%clk 0:01:20.9]} 20... Qxa2 {[%clk 0:01:20.7]}
21. g4 {[%clk 0:01:19.5]} 21... f5 {[%clk 0:01:09.1]} 22. Rff1 {[%clk
0:01:14.8]} 22... Qa6 {[%clk 0:01:00]} 23. Qd2 {[%clk 0:01:13.8]} 23... Na5
{[%clk 0:00:58]} 24. Qa2 {[%clk 0:01:05.9]} 24... Nc4 {[%clk 0:00:51.1]} 25.
Qxa6 {[%clk 0:01:02.9]} 25... bxa6 {[%clk 0:00:50.8]} 26. Nxc4 {[%clk
0:01:03.8]} 26... Rxc4 {[%clk 0:00:32.5]} 27. Rb7 {[%clk 0:01:03.6]} 27... a5
{[%clk 0:00:23.4]} 28. Rxa7 {[%clk 0:01:01.8]} 28... a4 {[%clk 0:00:23.4]} 29.
Ra1 {[%clk 0:01:01.1]} 29... Rec8 {[%clk 0:00:20.7]} 30. Rb1 {[%clk 0:00:49.2]}
30... R8c7 {[%clk 0:00:19.2]} 31. Rb8+ {[%clk 0:00:48.7]} 31... Kf7 {[%clk
0:00:18.4]} 32. Ra6 {[%clk 0:00:40.9]} 32... fxg4 {[%clk 0:00:16.9]} 33. Rba8
{[%clk 0:00:40.4]} 33... h5 {[%clk 0:00:15.4]} 34. Rb6 {[%clk 0:00:38.7]} 34...
Bf8 {[%clk 0:00:13.3]} 35. Raa6 {[%clk 0:00:38.8]} 35... Re7 {[%clk 0:00:11.5]}
36. Rb8 {[%clk 0:00:38]} 36... Bh6 {[%clk 0:00:10.7]} 37. Kg2 {[%clk 0:00:37.9]}
37... g5 {[%clk 0:00:10.8]} 38. fxg5 {[%clk 0:00:27.6]} 38... Bxg5 {[%clk
0:00:10.8]} 39. Rh8 {[%clk 0:00:28]} 39... Bd2 {[%clk 0:00:09.8]} 40. Raa8
{[%clk 0:00:19.3]} 40... Bxc3 {[%clk 0:00:07.2]} 41. Rh7+ {[%clk 0:00:17.8]}
41... Kg6 {[%clk 0:00:06.5]} 42. Rxe7 {[%clk 0:00:17]} 42... Bxd4 {[%clk
0:00:05.5]} 43. Rxe6+ {[%clk 0:00:17.4]} 43... Kf5 {[%clk 0:00:03.6]} 44. Rea6
{[%clk 0:00:12.7]} 44... Be3 {[%clk 0:00:02.3]} 45. Rxa4 {[%clk 0:00:12.1]}
45... Rc2 {[%clk 0:00:02.2]} 46. Ra2 {[%clk 0:00:12.6]} 1-0

[Event "*** Titled Tuesday Blitz"]
[Site "Chess.com"]
[Date "2021.03.09"]
[Round "5"]
[White "tylityli"]
[Black "Unknown_IM"]
[Result "0-1"]
[WhiteElo "2241"]
[BlackElo "2393"]
[TimeControl "180+1"]
[EndTime "10:59:19 PST"]
[Termination "Unknown_IM won on time"]

1. d4 {[%clk 0:02:32.4]} 1... Nf6 {[%clk 0:02:34.5]} 2. c4 {[%clk 0:02:31.6]}
2... c5 {[%clk 0:02:33.4]} 3. d5 {[%clk 0:02:31.5]} 3... b5 {[%clk 0:02:31.9]}
4. Nd2 {[%clk 0:02:31.3]} 4... d6 {[%clk 0:02:28.9]} 5. e4 {[%clk 0:02:30.8]}
5... g6 {[%clk 0:02:24.2]} 6. b3 {[%clk 0:02:30]} 6... Bg7 {[%clk 0:02:22.6]} 7.
Bb2 {[%clk 0:02:30.2]} 7... b4 {[%clk 0:02:21.5]} 8. a4 {[%clk 0:02:26.6]} 8...
a5 {[%clk 0:02:18.6]} 9. h3 {[%clk 0:02:21.7]} 9... O-O {[%clk 0:02:12.4]} 10.
Bd3 {[%clk 0:02:21.2]} 10... Re8 {[%clk 0:02:06.1]} 11. Ne2 {[%clk 0:02:18.6]}
11... Nbd7 {[%clk 0:01:55.2]} 12. O-O {[%clk 0:02:16.2]} 12... Nxe4 {[%clk
0:01:29.8]} 13. Bxg7 {[%clk 0:02:04.8]} 13... Nxd2 {[%clk 0:01:29]} 14. Bh6
{[%clk 0:01:41.4]} 14... Nxf1 {[%clk 0:01:26.9]} 15. Kxf1 {[%clk 0:01:40.8]}
15... Ne5 {[%clk 0:01:23.3]} 16. f4 {[%clk 0:01:35.5]} 16... Nxd3 {[%clk
0:01:22.5]} 17. Qxd3 {[%clk 0:01:36.3]} 17... e5 {[%clk 0:01:19]} 18. dxe6
{[%clk 0:01:33.2]} 18... Bxe6 {[%clk 0:01:17.7]} 19. Rd1 {[%clk 0:01:32.1]}
19... Qf6 {[%clk 0:01:12.7]} 20. Kg1 {[%clk 0:01:29.4]} 20... Bf5 {[%clk
0:01:09.6]} 21. Qd2 {[%clk 0:01:20.2]} 21... Qe6 {[%clk 0:01:04]} 22. Qb2 {[%clk
0:01:09.6]} 22... f6 {[%clk 0:00:56.8]} 23. Rd2 {[%clk 0:01:01.8]} 23... Kf7
{[%clk 0:00:50.2]} 24. Kh2 {[%clk 0:00:46.9]} 24... Rad8 {[%clk 0:00:46.5]} 25.
Ng3 {[%clk 0:00:45.4]} 25... d5 {[%clk 0:00:45.4]} 26. cxd5 {[%clk 0:00:35.4]}
26... Rxd5 {[%clk 0:00:44.2]} 27. Re2 {[%clk 0:00:35.1]} 27... Qd7 {[%clk
0:00:42.3]} 28. Rxe8 {[%clk 0:00:26.8]} 28... Qxe8 {[%clk 0:00:43.2]} 29. Qc1
{[%clk 0:00:19.1]} 29... Qe6 {[%clk 0:00:38.4]} 30. Qc4 {[%clk 0:00:17.6]} 30...
Bd3 {[%clk 0:00:25.2]} 31. Qc1 {[%clk 0:00:13.5]} 31... Ke7 {[%clk 0:00:13.9]}
32. Qb2 {[%clk 0:00:08.7]} 32... Kd6 {[%clk 0:00:11.7]} 33. Bg7 {[%clk
0:00:07.3]} 33... f5 {[%clk 0:00:10.4]} 34. Be5+ {[%clk 0:00:06.5]} 34... Kc6
{[%clk 0:00:10.2]} 35. Qf2 {[%clk 0:00:05.3]} 35... Be4 {[%clk 0:00:09.6]} 36.
Qe3 {[%clk 0:00:03]} 36... Rd3 {[%clk 0:00:09.5]} 37. Qc1 {[%clk 0:00:03.1]}
37... Qxb3 {[%clk 0:00:09.1]} 38. Qe1 {[%clk 0:00:02.3]} 38... Rxg3 {[%clk
0:00:06.7]} 39. Qxg3 {[%clk 0:00:02]} 39... Qxg3+ {[%clk 0:00:07.3]} 40. Kxg3
{[%clk 0:00:02.9]} 40... c4 {[%clk 0:00:07.7]} 41. Kf2 {[%clk 0:00:02.3]} 41...
c3 {[%clk 0:00:07.9]} 42. Ke3 {[%clk 0:00:02.3]} 42... Bxg2 {[%clk 0:00:07.8]}
43. h4 {[%clk 0:00:01.6]} 43... Be4 {[%clk 0:00:08.7]} 44. Kd4 {[%clk
0:00:01.1]} 44... c2 {[%clk 0:00:08.5]} 0-1

[Event "*** Titled Tuesday Blitz"]
[Site "Chess.com"]
[Date "2021.03.09"]
[Round "5"]
[White "Matols"]
[Black "BegmuratovKh2010"]
[Result "0-1"]
[WhiteElo "2279"]
[BlackElo "2547"]
[TimeControl "180+1"]
[EndTime "10:59:22 PST"]
[Termination "BegmuratovKh2010 won on time"]

1. d4 {[%clk 0:03:00.9]} 1... Nf6 {[%clk 0:02:59.2]} 2. c4 {[%clk 0:03:00.7]}
2... g6 {[%clk 0:02:59.4]} 3. g3 {[%clk 0:03:00.7]} 3... Bg7 {[%clk 0:02:59.7]}
4. Bg2 {[%clk 0:03:00.8]} 4... O-O {[%clk 0:03:00.6]} 5. Nc3 {[%clk 0:03:00.4]}
5... d6 {[%clk 0:03:01.1]} 6. Nf3 {[%clk 0:03:00.5]} 6... c6 {[%clk 0:03:01.5]}
7. O-O {[%clk 0:02:59.6]} 7... Nbd7 {[%clk 0:03:02.4]} 8. h3 {[%clk 0:02:58.7]}
8... Qc7 {[%clk 0:03:02.4]} 9. e4 {[%clk 0:02:57.8]} 9... e5 {[%clk 0:03:02.7]}
10. Be3 {[%clk 0:02:56.6]} 10... exd4 {[%clk 0:03:01.7]} 11. Nxd4 {[%clk
0:02:56.2]} 11... Ne5 {[%clk 0:03:01.5]} 12. b3 {[%clk 0:02:51.3]} 12... Re8
{[%clk 0:03:00]} 13. Qc2 {[%clk 0:02:45]} 13... Nh5 {[%clk 0:02:52.2]} 14. Rad1
{[%clk 0:02:41.1]} 14... Nd7 {[%clk 0:02:43.4]} 15. Kh2 {[%clk 0:02:26.7]} 15...
a5 {[%clk 0:02:34.6]} 16. f4 {[%clk 0:02:16.5]} 16... Nc5 {[%clk 0:02:27.6]} 17.
Bf2 {[%clk 0:02:01.1]} 17... Ne6 {[%clk 0:02:22.9]} 18. Nxe6 {[%clk 0:01:56.5]}
18... Bxe6 {[%clk 0:02:23.8]} 19. Ne2 {[%clk 0:01:40.2]} 19... a4 {[%clk
0:02:16]} 20. Nd4 {[%clk 0:01:34.5]} 20... Bd7 {[%clk 0:02:11.3]} 21. b4 {[%clk
0:01:28.9]} 21... Nf6 {[%clk 0:02:04.3]} 22. Rfe1 {[%clk 0:01:21.8]} 22... Re7
{[%clk 0:01:51.5]} 23. a3 {[%clk 0:01:15.1]} 23... Rae8 {[%clk 0:01:50.4]} 24.
Rd2 {[%clk 0:00:52.4]} 24... b6 {[%clk 0:01:33.2]} 25. Rde2 {[%clk 0:00:48.4]}
25... c5 {[%clk 0:01:18]} 26. Nb5 {[%clk 0:00:47.8]} 26... Bxb5 {[%clk
0:01:16.5]} 27. cxb5 {[%clk 0:00:47.8]} 27... Nd7 {[%clk 0:01:17.4]} 28. bxc5
{[%clk 0:00:42.9]} 28... Nxc5 {[%clk 0:01:15.5]} 29. e5 {[%clk 0:00:36.7]} 29...
dxe5 {[%clk 0:01:12.2]} 30. Bc6 {[%clk 0:00:36.5]} 30... Rd8 {[%clk 0:01:10.5]}
31. Bxc5 {[%clk 0:00:35]} 31... bxc5 {[%clk 0:01:06.1]} 32. Qxc5 {[%clk
0:00:35]} 32... Bf8 {[%clk 0:00:59.3]} 33. fxe5 {[%clk 0:00:27.8]} 33... Rd3
{[%clk 0:00:53.5]} 34. Qc4 {[%clk 0:00:25.3]} 34... Rxa3 {[%clk 0:00:48.8]} 35.
Rf1 {[%clk 0:00:24]} 35... Bg7 {[%clk 0:00:43.3]} 36. Bd5 {[%clk 0:00:17.5]}
36... Qxc4 {[%clk 0:00:36.6]} 37. Bxc4 {[%clk 0:00:17.4]} 37... Bxe5 {[%clk
0:00:36.7]} 38. b6 {[%clk 0:00:07.8]} 38... Bxg3+ {[%clk 0:00:25.1]} 39. Kg2
{[%clk 0:00:06.9]} 39... Rxe2+ {[%clk 0:00:21.3]} 40. Bxe2 {[%clk 0:00:07.8]}
40... Be5 {[%clk 0:00:21.6]} 41. b7 {[%clk 0:00:06.6]} 41... Rb3 {[%clk
0:00:19.1]} 42. Bf3 {[%clk 0:00:05.6]} 42... Rb2+ {[%clk 0:00:18.7]} 43. Kg1
{[%clk 0:00:05.1]} 43... a3 {[%clk 0:00:17.3]} 44. Bd5 {[%clk 0:00:04.5]} 44...
a2 {[%clk 0:00:16.8]} 45. Bxf7+ {[%clk 0:00:04]} 45... Kg7 {[%clk 0:00:16.3]}
46. Bd5 {[%clk 0:00:04]} 46... Rc2 {[%clk 0:00:09.9]} 0-1

[Event "*** Titled Tuesday Blitz"]
[Site "Chess.com"]
[Date "2021.03.09"]
[Round "5"]
[White "marianokar"]
[Black "Beca95"]
[Result "1-0"]
[WhiteElo "2485"]
[BlackElo "2861"]
[TimeControl "180+1"]
[EndTime "10:59:28 PST"]
[Termination "marianokar won on time"]

1. e4 {[%clk 0:03:00.9]} 1... d6 {[%clk 0:03:00.4]} 2. d4 {[%clk 0:02:59.9]}
2... Nf6 {[%clk 0:03:01.1]} 3. Bd3 {[%clk 0:02:59.4]} 3... e5 {[%clk 0:02:58.3]}
4. c3 {[%clk 0:02:59.4]} 4... d5 {[%clk 0:02:57.7]} 5. dxe5 {[%clk 0:02:11]}
5... Nxe4 {[%clk 0:02:55.9]} 6. Bxe4 {[%clk 0:02:10.5]} 6... dxe4 {[%clk
0:02:56.8]} 7. Qxd8+ {[%clk 0:02:10.8]} 7... Kxd8 {[%clk 0:02:57.7]} 8. Bg5+
{[%clk 0:02:10.9]} 8... Ke8 {[%clk 0:02:56.3]} 9. Nd2 {[%clk 0:02:09.7]} 9...
Nc6 {[%clk 0:02:49.7]} 10. Nxe4 {[%clk 0:01:50.8]} 10... Nxe5 {[%clk 0:02:49.4]}
11. O-O-O {[%clk 0:01:51.1]} 11... Be6 {[%clk 0:02:49.3]} 12. Bf4 {[%clk
0:01:39]} 12... Nc6 {[%clk 0:02:32.4]} 13. Bxc7 {[%clk 0:01:31]} 13... Rc8
{[%clk 0:02:32.6]} 14. Bd6 {[%clk 0:01:15.1]} 14... Bxa2 {[%clk 0:02:31.6]} 15.
Nf3 {[%clk 0:01:07.4]} 15... f6 {[%clk 0:02:26.8]} 16. Rhe1 {[%clk 0:01:05.2]}
16... Kf7 {[%clk 0:02:22.8]} 17. Bxf8 {[%clk 0:01:04.1]} 17... Kxf8 {[%clk
0:02:23.1]} 18. Rd7 {[%clk 0:01:01]} 18... b6 {[%clk 0:01:07.1]} 19. Nd6 {[%clk
0:00:59]} 19... Rb8 {[%clk 0:01:04.7]} 20. Rc7 {[%clk 0:00:53.5]} 20... Bd5
{[%clk 0:01:01.5]} 21. Rd1 {[%clk 0:00:32.6]} 21... Bxf3 {[%clk 0:00:41.2]} 22.
gxf3 {[%clk 0:00:33.5]} 22... Ne5 {[%clk 0:00:40.8]} 23. f4 {[%clk 0:00:31]}
23... Ng6 {[%clk 0:00:40.7]} 24. f5 {[%clk 0:00:30.2]} 24... Ne7 {[%clk
0:00:24.6]} 25. Rxa7 {[%clk 0:00:28.9]} 25... h5 {[%clk 0:00:20]} 26. Re1 {[%clk
0:00:26.2]} 26... Nd5 {[%clk 0:00:19.8]} 27. Rb7 {[%clk 0:00:21.5]} 27... Rd8
{[%clk 0:00:18.2]} 28. Rd7 {[%clk 0:00:21.3]} 28... Ra8 {[%clk 0:00:17.9]} 29.
Rf7+ {[%clk 0:00:20.5]} 29... Kg8 {[%clk 0:00:17.6]} 30. Rd7 {[%clk 0:00:19.2]}
30... Kh7 {[%clk 0:00:12.4]} 31. Ne4 {[%clk 0:00:17.8]} 31... Rhd8 {[%clk
0:00:08.3]} 32. Rxd8 {[%clk 0:00:17.2]} 32... Rxd8 {[%clk 0:00:09]} 33. Rd1
{[%clk 0:00:17.7]} 33... b5 {[%clk 0:00:09.6]} 34. Nc5 {[%clk 0:00:16.5]} 34...
Rd6 {[%clk 0:00:08.2]} 35. Ne6 {[%clk 0:00:16.6]} 35... Kh6 {[%clk 0:00:08.4]}
36. Nf4 {[%clk 0:00:16.4]} 36... Nxf4 {[%clk 0:00:07.5]} 37. Rxd6 {[%clk
0:00:16.5]} 37... Kg5 {[%clk 0:00:08.2]} 38. Rb6 {[%clk 0:00:16.6]} 38... Kxf5
{[%clk 0:00:08.1]} 39. Rxb5+ {[%clk 0:00:17.1]} 39... Kg4 {[%clk 0:00:09]} 40.
Rb7 {[%clk 0:00:17.4]} 40... g5 {[%clk 0:00:08.7]} 41. Kd2 {[%clk 0:00:17.9]}
41... Kh3 {[%clk 0:00:09.2]} 42. Rf7 {[%clk 0:00:17.7]} 42... Kxh2 {[%clk
0:00:09.3]} 43. Rxf6 {[%clk 0:00:17.8]} 43... h4 {[%clk 0:00:08.3]} 44. b4
{[%clk 0:00:18.1]} 44... h3 {[%clk 0:00:08.5]} 45. b5 {[%clk 0:00:18.2]} 45...
Kg2 {[%clk 0:00:08.2]} 46. b6 {[%clk 0:00:18.4]} 46... Nd5 {[%clk 0:00:07.8]}
47. b7 {[%clk 0:00:18.5]} 47... Nxf6 {[%clk 0:00:07.8]} 48. b8=Q {[%clk
0:00:18.7]} 48... h2 {[%clk 0:00:08.4]} 49. Qg3+ {[%clk 0:00:18.7]} 49... Kh1
{[%clk 0:00:08.2]} 50. Ke2 {[%clk 0:00:17.8]} 50... g4 {[%clk 0:00:07.4]} 51. c4
{[%clk 0:00:17]} 51... Ne4 {[%clk 0:00:04.7]} 52. Qxg4 {[%clk 0:00:17.3]} 1-0

[Event "*** Titled Tuesday Blitz"]
[Site "Chess.com"]
[Date "2021.03.09"]
[Round "5"]
[White "AsaHoffmann"]
[Black "Pilopa"]
[Result "0-1"]
[WhiteElo "2404"]
[BlackElo "2551"]
[TimeControl "180+1"]
[EndTime "10:59:28 PST"]
[Termination "Pilopa won by resignation"]

1. d4 {[%clk 0:02:55.7]} 1... Nf6 {[%clk 0:02:59]} 2. Bg5 {[%clk 0:02:53.2]}
2... e6 {[%clk 0:02:58.5]} 3. Nd2 {[%clk 0:02:52.5]} 3... c5 {[%clk 0:02:54.8]}
4. e3 {[%clk 0:02:51.2]} 4... cxd4 {[%clk 0:02:51.8]} 5. exd4 {[%clk 0:02:50.9]}
5... Be7 {[%clk 0:02:52.3]} 6. Bd3 {[%clk 0:02:49.6]} 6... d6 {[%clk 0:02:52.4]}
7. Ngf3 {[%clk 0:02:48.6]} 7... Nbd7 {[%clk 0:02:52.8]} 8. Qe2 {[%clk 0:02:48]}
8... b6 {[%clk 0:02:51.9]} 9. a4 {[%clk 0:02:47.6]} 9... a6 {[%clk 0:02:51.5]}
10. O-O {[%clk 0:02:46.6]} 10... Bb7 {[%clk 0:02:51.6]} 11. h3 {[%clk
0:02:44.5]} 11... O-O {[%clk 0:02:52]} 12. c4 {[%clk 0:02:44.2]} 12... Re8
{[%clk 0:02:48.3]} 13. Rfe1 {[%clk 0:02:43.5]} 13... e5 {[%clk 0:02:44.9]} 14.
dxe5 {[%clk 0:02:40]} 14... dxe5 {[%clk 0:02:44.9]} 15. Ne4 {[%clk 0:02:31.4]}
15... Nxe4 {[%clk 0:02:39.7]} 16. Bxe7 {[%clk 0:02:29.4]} 16... Qxe7 {[%clk
0:02:40.6]} 17. Bxe4 {[%clk 0:02:29.3]} 17... Bxe4 {[%clk 0:02:39.2]} 18. Qxe4
{[%clk 0:02:29]} 18... a5 {[%clk 0:02:23.2]} 19. Rad1 {[%clk 0:02:22.7]} 19...
Nc5 {[%clk 0:02:03.5]} 20. Qxe5 {[%clk 0:02:17.5]} 20... Qxe5 {[%clk 0:02:02.8]}
21. Nxe5 {[%clk 0:02:13.1]} 21... Nxa4 {[%clk 0:02:01.8]} 22. b3 {[%clk
0:02:11.5]} 22... Nc5 {[%clk 0:02:01.6]} 23. Rb1 {[%clk 0:01:55.3]} 23... Re6
{[%clk 0:01:45.4]} 24. Nf3 {[%clk 0:01:53.5]} 24... Rxe1+ {[%clk 0:01:44.2]} 25.
Nxe1 {[%clk 0:01:52.8]} 25... Re8 {[%clk 0:01:37.3]} 26. Kf1 {[%clk 0:01:50.1]}
26... g6 {[%clk 0:01:34.8]} 27. Nf3 {[%clk 0:01:42.2]} 27... Na6 {[%clk
0:01:18.7]} 28. Nd4 {[%clk 0:01:35.6]} 28... Rd8 {[%clk 0:01:16.2]} 29. Nc6
{[%clk 0:01:33.4]} 29... Rd7 {[%clk 0:00:46.4]} 30. b4 {[%clk 0:01:15.8]} 30...
Rc7 {[%clk 0:00:44.3]} 31. b5 {[%clk 0:01:08.2]} 31... Nc5 {[%clk 0:00:43.6]}
32. Rd1 {[%clk 0:01:03.9]} 32... Kg7 {[%clk 0:00:41.3]} 33. Rd8 {[%clk
0:01:02.4]} 33... Rd7 {[%clk 0:00:41.1]} 34. Rb8 {[%clk 0:00:57.4]} 34... a4
{[%clk 0:00:36]} 35. Rxb6 {[%clk 0:00:52.9]} 35... a3 {[%clk 0:00:36]} 36. Nb4
{[%clk 0:00:50.2]} 36... Rd2 {[%clk 0:00:30.7]} 37. Rc6 {[%clk 0:00:45.8]} 37...
Rb2 {[%clk 0:00:28.5]} 38. Na2 {[%clk 0:00:29.5]} 38... Rxa2 {[%clk 0:00:20.3]}
39. Rxc5 {[%clk 0:00:29]} 39... Rb2 {[%clk 0:00:19.2]} 40. b6 {[%clk 0:00:28.5]}
40... a2 {[%clk 0:00:19.4]} 41. Ra5 {[%clk 0:00:28.5]} 41... Rb1+ {[%clk
0:00:19.4]} 42. Ke2 {[%clk 0:00:28.5]} 42... a1=Q {[%clk 0:00:20.3]} 43. Rxa1
{[%clk 0:00:27.8]} 43... Rxa1 {[%clk 0:00:21.2]} 44. c5 {[%clk 0:00:27.2]} 44...
Kf6 {[%clk 0:00:18.9]} 45. c6 {[%clk 0:00:24.5]} 45... Ke6 {[%clk 0:00:11.8]}
46. c7 {[%clk 0:00:22.7]} 46... Kd7 {[%clk 0:00:11.1]} 47. Ke3 {[%clk
0:00:21.1]} 47... Kc8 {[%clk 0:00:10.5]} 48. Kf4 {[%clk 0:00:19.7]} 48... Rb1
{[%clk 0:00:10.5]} 49. Kg5 {[%clk 0:00:17.5]} 49... Rxb6 {[%clk 0:00:08.9]} 50.
f4 {[%clk 0:00:17.4]} 50... Kxc7 {[%clk 0:00:09.8]} 51. g4 {[%clk 0:00:17.3]}
51... h5 {[%clk 0:00:09.1]} 52. gxh5 {[%clk 0:00:15.8]} 52... gxh5 {[%clk
0:00:10]} 53. Kxh5 {[%clk 0:00:15.8]} 53... Kd7 {[%clk 0:00:10.9]} 54. Kg5
{[%clk 0:00:16.1]} 54... Ke7 {[%clk 0:00:11.8]} 55. h4 {[%clk 0:00:16.3]} 55...
Kf8 {[%clk 0:00:12.7]} 56. h5 {[%clk 0:00:16.4]} 56... Kg7 {[%clk 0:00:13.6]}
57. f5 {[%clk 0:00:16.6]} 57... Ra6 {[%clk 0:00:14.1]} 58. h6+ {[%clk
0:00:15.4]} 58... Rxh6 {[%clk 0:00:12.3]} 59. f6+ {[%clk 0:00:14.9]} 59... Rxf6
{[%clk 0:00:11.7]} 0-1

[Event "*** Titled Tuesday Blitz"]
[Site "Chess.com"]
[Date "2021.03.09"]
[Round "5"]
[White "lelya96"]
[Black "Politov_Pavel"]
[Result "1/2-1/2"]
[WhiteElo "2264"]
[BlackElo "2417"]
[TimeControl "180+1"]
[EndTime "10:59:29 PST"]
[Termination "Game drawn by repetition"]

1. d4 {[%clk 0:03:00.9]} 1... Nf6 {[%clk 0:02:59.1]} 2. Nf3 {[%clk 0:02:59.8]}
2... e6 {[%clk 0:02:56]} 3. Bg5 {[%clk 0:02:59]} 3... d5 {[%clk 0:02:56]} 4. e3
{[%clk 0:02:58.3]} 4... Be7 {[%clk 0:02:54.1]} 5. Bd3 {[%clk 0:02:58.1]} 5... b6
{[%clk 0:02:53.6]} 6. O-O {[%clk 0:02:57]} 6... Ba6 {[%clk 0:02:54]} 7. c3
{[%clk 0:02:54.6]} 7... O-O {[%clk 0:02:50.4]} 8. Re1 {[%clk 0:02:51]} 8... Bxd3
{[%clk 0:02:46.7]} 9. Qxd3 {[%clk 0:02:50.6]} 9... Ne4 {[%clk 0:02:47.6]} 10.
Bf4 {[%clk 0:02:48.3]} 10... Nd7 {[%clk 0:02:37.5]} 11. Nbd2 {[%clk 0:02:46.9]}
11... f5 {[%clk 0:02:30.8]} 12. c4 {[%clk 0:02:42.4]} 12... c6 {[%clk
0:02:24.1]} 13. Rac1 {[%clk 0:02:37.9]} 13... Rc8 {[%clk 0:02:13.3]} 14. h3
{[%clk 0:02:34.8]} 14... Ndf6 {[%clk 0:02:05.1]} 15. a3 {[%clk 0:02:30]} 15...
Nxd2 {[%clk 0:01:59]} 16. Nxd2 {[%clk 0:02:28.2]} 16... Ne4 {[%clk 0:01:59.3]}
17. Be5 {[%clk 0:02:10.3]} 17... Bd6 {[%clk 0:01:49.8]} 18. Nf3 {[%clk
0:02:09.4]} 18... Bxe5 {[%clk 0:01:39.3]} 19. Nxe5 {[%clk 0:02:08.7]} 19... Qh4
{[%clk 0:01:39.8]} 20. Rc2 {[%clk 0:02:01]} 20... f4 {[%clk 0:01:32.1]} 21. Nf3
{[%clk 0:01:56.8]} 21... Qh6 {[%clk 0:01:28.3]} 22. Rec1 {[%clk 0:01:43.8]}
22... fxe3 {[%clk 0:01:22.7]} 23. Qxe3 {[%clk 0:01:43.5]} 23... Rf4 {[%clk
0:00:53.5]} 24. cxd5 {[%clk 0:01:38.3]} 24... exd5 {[%clk 0:00:53.1]} 25. Rxc6
{[%clk 0:00:58.6]} 25... Rxc6 {[%clk 0:00:53.2]} 26. Rxc6 {[%clk 0:00:57.8]}
26... Qxc6 {[%clk 0:00:54.1]} 27. Qxf4 {[%clk 0:00:57.4]} 27... h6 {[%clk
0:00:54.6]} 28. Ne5 {[%clk 0:00:54.9]} 28... Qc2 {[%clk 0:00:52.4]} 29. Qf7+
{[%clk 0:00:52.1]} 29... Kh7 {[%clk 0:00:50.7]} 30. Qf5+ {[%clk 0:00:36.6]}
30... Kg8 {[%clk 0:00:49.3]} 31. Ng6 {[%clk 0:00:33.9]} 31... Qd1+ {[%clk
0:00:32.7]} 32. Kh2 {[%clk 0:00:32.2]} 32... Nf6 {[%clk 0:00:32.8]} 33. Qc8+
{[%clk 0:00:25.9]} 33... Kh7 {[%clk 0:00:27.4]} 34. Nf8+ {[%clk 0:00:26]} 34...
Kg8 {[%clk 0:00:27.9]} 35. Nd7+ {[%clk 0:00:21.8]} 35... Kf7 {[%clk 0:00:23.2]}
36. Qf8+ {[%clk 0:00:19.2]} 36... Kg6 {[%clk 0:00:21.6]} 37. Ne5+ {[%clk
0:00:19.2]} 37... Kh7 {[%clk 0:00:20.3]} 38. Qf7 {[%clk 0:00:17.5]} 38... Qxd4
{[%clk 0:00:18.8]} 39. Qg6+ {[%clk 0:00:17.1]} 39... Kg8 {[%clk 0:00:19]} 40.
Qf7+ {[%clk 0:00:17.1]} 40... Kh7 {[%clk 0:00:19.1]} 41. Qg6+ {[%clk 0:00:16.6]}
41... Kh8 {[%clk 0:00:19.5]} 42. Nf7+ {[%clk 0:00:16.3]} 42... Kg8 {[%clk
0:00:19.7]} 43. Nxh6+ {[%clk 0:00:16.2]} 43... Kh8 {[%clk 0:00:19.7]} 44. Nf7+
{[%clk 0:00:15.8]} 44... Kg8 {[%clk 0:00:20.1]} 45. Nh6+ {[%clk 0:00:09.6]}
45... Kh8 {[%clk 0:00:20.4]} 46. Nf5 {[%clk 0:00:09.1]} 46... Qf4+ {[%clk
0:00:19.3]} 47. Kg1 {[%clk 0:00:07.3]} 47... Qc1+ {[%clk 0:00:19.3]} 48. Kh2
{[%clk 0:00:07.5]} 48... Qf4+ {[%clk 0:00:19.2]} 49. Kh1 {[%clk 0:00:07.3]}
49... Qc1+ {[%clk 0:00:18.2]} 50. Kh2 {[%clk 0:00:07]} 50... Qc7+ {[%clk
0:00:18.8]} 51. Kg1 {[%clk 0:00:06.4]} 51... Ne4 {[%clk 0:00:19.1]} 52. Qh5+
{[%clk 0:00:06.3]} 52... Kg8 {[%clk 0:00:18.4]} 53. Qe8+ {[%clk 0:00:06.5]}
53... Kh7 {[%clk 0:00:19]} 54. Qh5+ {[%clk 0:00:06.3]} 54... Kg8 {[%clk
0:00:19.6]} 55. Qe8+ {[%clk 0:00:06.4]} 55... Kh7 {[%clk 0:00:20.1]} 56. Qh5+
{[%clk 0:00:05.5]} 56... Kg8 {[%clk 0:00:20.6]} 1/2-1/2